bitfinex-derivatives/quotes_ETHF0:USTF0_20250114
["timestamp","ask_amount","ask_price","bid_price","bid_amount"]
[1736869504872,3.55464946,3213.1,3212.7,3.27639018]
[1736869505377,3.2078,3213.2,3213.0,3.27639018]
[1736869505681,0.31132,3213.2,3213.1,3.2078]
[1736869505882,0.31132,3213.2,3212.7,6.48419018]
[1736869506074,0.31132,3213.2,3212.7,6.79555018]
[1736869506379,0.4682,3213.4,3213.1,40.8]
[1736869506775,0.31132,3213.2,3213.1,40.8]
[1736869507181,3.34257058,3213.2,3213.1,40.8]
[1736869507376,3.65389058,3213.2,3213.1,40.8]
[1736869507678,3.60744805,3213.2,3213.1,40.8]
[1736869509782,3.29612805,3213.2,3212.7,0.31137]
[1736869510082,0.31135,3212.9,3212.6,0.31137]
[1736869510282,3.31015665,3213.3,3212.4,3.52714849]
[1736869510479,0.31135,3212.9,3212.6,0.31137]
[1736869510681,0.31134,3213.1,3212.7,0.31136]
[1736869510880,3.36926438,3213.3,3213.0,3.27639018]
[1736869511084,0.31127,3213.8,3213.4,0.3113]
[1736869511388,3.36926438,3213.6,3213.5,0.31129]
[1736869511684,3.6745,3213.9,3213.5,0.31129]
[1736869511885,0.4667,3213.9,3213.7,0.31127]
[1736869512089,0.31128,3213.7,3213.4,0.3113]
[1736869512384,0.31134,3213.1,3212.8,44.56283612]
[1736869512586,0.31135,3212.9,3212.8,3.2078]
[1736869512887,3.57358395,3212.9,3212.8,3.2078]
[1736869513285,0.79825,3213.0,3212.8,3.2078]
[1736869513477,0.31135,3212.9,3212.8,3.2078]
[1736869515089,0.31139,3212.5,3212.3,44.0078]
[1736869515677,3.24332223,3212.9,3212.3,44.0078]
[1736869515883,3.7729539,3212.4,3212.3,44.0078]
[1736869516083,0.3114,3212.4,3212.3,44.0078]
[1736869516493,3.7729539,3212.4,3212.3,44.0078]
[1736869516688,3.7729539,3212.4,3212.3,3.2078]
[1736869516989,3.4615539,3212.4,3211.9,3.27639018]
[1736869517191,0.31144,3212.0,3211.8,3.2078]
[1736869517384,4.2487138,3212.5,3211.8,3.2078]
[1736869517582,0.31144,3212.0,3211.8,3.2078]
[1736869517786,4.2487138,3212.5,3211.8,3.2078]
[1736869518085,0.31144,3212.0,3211.8,3.2078]
[1736869518290,3.33446292,3212.3,3211.8,3.2078]
[1736869518485,1.28139,3212.5,3212.0,0.31143]
[1736869518688,0.97,3212.5,3211.8,3.51925]
[1736869518888,0.31143,3212.2,3211.8,3.2078]
[1736869519089,0.31143,3212.2,3211.8,3.51925]
[1736869519285,3.58780128,3212.4,3211.8,3.2078]
[1736869519692,0.31142,3212.2,3211.8,3.2078]
[1736869519891,3.58780128,3212.4,3211.8,3.2078]
[1736869520092,3.34118621,3212.1,3211.8,3.2078]
[1736869520288,3.34118621,3212.1,3211.8,3.51925]
[1736869520488,3.34118621,3212.4,3211.8,3.2078]
[1736869520785,3.27805173,3212.1,3211.8,3.2078]
[1736869520990,0.31145,3211.9,3211.8,3.2078]
[1736869521387,0.4825,3212.0,3211.8,3.2078]
[1736869521587,0.31145,3211.9,3211.8,3.2078]
[1736869522294,0.4825,3212.0,3211.8,3.2078]
[1736869522693,0.31145,3211.9,3211.8,3.2078]
[1736869522894,0.4825,3212.0,3211.8,3.2078]
[1736869523091,0.79394,3212.0,3211.8,3.2078]
[1736869523290,0.79394,3212.0,3211.6,41.11147]
[1736869523493,0.31145,3211.9,3211.6,40.8]
[1736869523896,0.4825,3212.0,3211.6,40.8]
[1736869524197,0.4825,3212.0,3211.7,0.31146]
[1736869524386,0.4825,3212.0,3211.6,40.8]
[1736869524387,3.2078,3211.8,3211.6,40.8]
[1736869524591,3.2078,3211.8,3211.0,3.2078]
[1736869524794,0.31152,3211.1,3211.0,3.2078]
[1736869525190,0.31152,3211.2,3211.0,3.2078]
[1736869525493,3.2078,3211.4,3211.0,3.2078]
[1736869525997,0.31152,3211.2,3211.0,3.2078]
[1736869526388,3.43563543,3211.1,3211.0,3.2078]
[1736869526595,3.43563543,3211.1,3211.0,6.48419018]
[1736869526795,3.2078,3211.8,3211.0,6.48419018]
[1736869527096,3.45033073,3211.7,3211.3,0.3115]
[1736869527297,3.76180073,3211.7,3211.2,0.31151]
[1736869527599,3.45033073,3211.7,3211.3,0.3115]
[1736869527904,0.31148,3211.6,3211.2,0.31151]
[1736869528099,3.45033073,3211.7,3211.1,0.4823]
[1736869529000,0.31151,3211.3,3211.1,0.4823]
[1736869529196,0.31152,3211.1,3211.0,3.2078]
[1736869529702,3.88168657,3211.1,3211.0,3.2078]
[1736869530803,3.57016657,3211.1,3211.0,3.2078]
[1736869530991,3.57016657,3211.1,3209.8,3.2078]
[1736869531197,0.31159,3210.5,3209.9,3.75219018]
[1736869531399,3.2078,3210.6,3210.0,41.2711]
[1736869531601,3.51937,3210.6,3210.3,0.3116]
[1736869531801,0.3116,3210.4,3210.0,41.2711]
[1736869532109,3.92300206,3210.5,3210.2,0.31161]
[1736869532407,3.61141206,3210.5,3210.0,41.2711]
[1736869532796,3.61141206,3210.5,3210.3,0.3116]
[1736869532995,3.61141206,3210.5,3210.0,41.2711]
[1736869533198,3.2078,3210.6,3210.2,3.27639018]
[1736869534008,3.57650805,3210.5,3210.0,41.2711]
[1736869534205,3.2078,3210.6,3210.3,3.27639018]
[1736869534400,1.0,3211.2,3210.3,3.27639018]
[1736869534604,3.43866673,3210.5,3210.2,3.2078]
[1736869534906,0.31157,3210.7,3210.4,0.31159]
[1736869535107,0.31156,3210.8,3210.4,0.31159]
[1736869535308,0.31158,3210.6,3210.3,0.3116]
[1736869535502,0.31159,3210.5,3210.2,3.51941]
[1736869535702,0.31159,3210.5,3210.0,44.54749018]
[1736869535703,3.47027212,3210.5,3210.0,44.54749018]
[1736869536007,3.2078,3211.0,3210.0,44.54749018]
[1736869536208,0.31159,3210.5,3210.2,0.31161]
[1736869536397,3.47027212,3210.6,3210.3,0.31159]
[1736869536603,3.47027212,3210.9,3210.3,3.27639018]
[1736869536905,3.2078,3211.5,3210.8,3.2078]
[1736869537109,0.3115,3211.4,3211.1,0.31152]
[1736869537308,3.71475647,3211.4,3211.1,0.31152]
[1736869537505,3.71475647,3211.4,3210.9,0.9608]
[1736869537506,0.31153,3211.0,3210.9,0.9608]
[1736869537709,3.40325647,3211.4,3210.9,0.9608]
[1736869538413,0.31153,3211.0,3210.9,0.9608]
[1736869538807,3.43352373,3211.0,3210.9,0.9608]
[1736869539106,0.3115,3211.4,3211.1,0.31152]
[1736869539302,0.31151,3211.2,3210.9,1.27234]
[1736869539504,3.43352373,3211.2,3210.9,0.9608]
[1736869539703,0.31153,3211.1,3210.9,0.9608]
[1736869540607,0.31152,3211.2,3210.9,1.27234]
[1736869540810,3.98653,3211.5,3210.9,0.9608]
[1736869541008,0.31155,3210.8,3210.5,0.31158]
[1736869541205,0.4593,3211.1,3210.5,3.2078]
[1736869541402,3.37230478,3210.7,3210.6,3.27639018]
[1736869541608,0.477,3211.2,3210.6,0.463]
[1736869541902,3.2078,3211.0,3210.4,40.8]
[1736869542103,0.77889,3210.8,3210.0,4.01763]
[1736869542311,0.3116,3210.4,3210.0,4.01763]
[1736869542513,3.53148152,3210.7,3210.1,3.27639018]
[1736869542708,3.2078,3211.0,3210.5,3.27639018]
[1736869542913,3.2078,3211.0,3210.6,0.78407]
[1736869543114,3.51934,3211.0,3210.6,0.78406]
[1736869543310,3.47443544,3210.9,3210.6,0.4725]
[1736869543610,0.31156,3210.8,3210.6,0.4725]
[1736869543816,3.47443544,3210.9,3210.6,0.4725]
[1736869544007,3.30028745,3210.7,3210.6,0.4725]
[1736869544514,0.31155,3210.8,3210.6,0.4725]
[1736869544720,3.2078,3211.0,3210.0,0.4982]
[1736869544721,3.59566335,3210.7,3210.0,0.4982]
[1736869544902,3.59566335,3210.7,3209.6,3.2078]
[1736869544903,0.31164,3210.0,3209.6,3.51946]
[1736869545108,3.2078,3210.4,3209.4,0.72048584]
[1736869545312,0.4656,3210.3,3209.5,40.8]
[1736869545514,0.31162,3210.2,3209.8,0.31164]
[1736869545808,0.4656,3210.3,3209.5,40.8]
[1736869546011,3.2078,3210.0,3209.5,40.8]
[1736869546214,0.31167,3209.7,3209.4,0.4725]
[1736869546413,0.31171,3209.2,3208.7,0.31175]
[1736869546712,3.38690903,3209.1,3208.6,3.686]
[1736869546913,3.38690903,3209.1,3208.6,3.2078]
[1736869546914,3.86980903,3209.1,3208.6,3.2078]
[1736869547112,3.2078,3208.7,3208.2,0.4967]
[1736869547307,0.31179,3208.4,3208.3,40.8]
[1736869547710,3.87127088,3208.4,3208.3,40.8]
[1736869548116,3.87127088,3208.4,3207.7,0.31185]
[1736869548117,0.3118,3208.3,3207.7,0.31185]
[1736869548307,3.55948088,3208.4,3207.6,1.22572167]
[1736869548308,0.31182,3208.1,3207.6,1.22572167]
[1736869548514,3.2078,3208.2,3207.6,1.22572167]
[1736869548515,6.76728088,3208.2,3207.6,1.22572167]
[1736869548716,3.54130681,3208.0,3207.7,40.8]
[1736869549017,3.54130681,3208.1,3207.7,40.8]
[1736869549215,3.54130681,3208.1,3208.0,0.31182]
[1736869549414,3.2078,3208.2,3208.0,0.31182]
[1736869549608,3.2078,3208.9,3207.9,6.48419018]
[1736869550011,3.60839221,3208.6,3208.5,0.31178]
[1736869550217,3.01262642,3208.8,3208.5,0.31178]
[1736869550417,0.4829,3209.1,3208.9,0.31174]
[1736869550715,3.57534463,3209.0,3208.4,3.2078]
[1736869550915,3.57534463,3209.0,3208.8,0.31174]
[1736869551114,3.57534463,3209.0,3208.9,0.31174]
[1736869551311,3.2078,3209.3,3208.5,3.27639018]
[1736869551521,3.2078,3209.3,3208.9,0.31173]
[1736869551816,3.56024943,3209.2,3209.1,0.31172]
[1736869552018,3.2078,3209.7,3209.1,3.27639018]
[1736869552218,3.2078,3209.7,3209.4,0.31168]
[1736869552522,3.56024943,3209.6,3209.2,0.4595]
[1736869552714,3.2078,3210.1,3209.4,3.27639018]
[1736869553220,0.31165,3209.8,3209.3,0.31169]
[1736869553522,0.31165,3209.9,3209.4,0.31168]
[1736869553817,0.31165,3209.8,3209.2,3.979]
[1736869554020,0.31166,3209.7,3209.2,3.979]
[1736869554317,3.42857391,3209.8,3209.2,3.979]
[1736869554318,6.63637391,3209.6,3209.2,3.6673]
[1736869554515,0.31168,3209.5,3209.2,3.6673]
[1736869554722,0.31168,3209.5,3209.2,3.2078]
[1736869554912,3.42082113,3209.4,3209.2,3.2078]
[1736869555117,3.42082113,3209.4,3209.2,3.5195]
[1736869555317,3.2078,3209.6,3209.2,3.2078]
[1736869555318,3.42082113,3209.5,3209.2,3.2078]
[1736869555518,0.31168,3209.5,3209.2,3.2078]
[1736869555718,3.2078,3209.6,3208.7,44.7186363]
[1736869555909,3.2078,3209.6,3208.6,0.4628]
[1736869555910,0.31175,3208.8,3208.4,0.31178]
[1736869556315,3.29753783,3208.7,3208.3,3.51959]
[1736869556512,3.29753783,3208.7,3208.4,40.8]
[1736869556819,3.24963715,3209.0,3208.9,0.31174]
[1736869557021,0.31169,3209.4,3208.9,0.31174]
[1736869557215,0.31169,3209.4,3208.9,0.31173]
[1736869557411,3.24963715,3209.0,3208.6,0.4593]
[1736869557624,3.2078,3209.2,3208.6,0.4593]
[1736869557825,3.7609653,3209.4,3209.0,0.31172]
[1736869558123,3.4492753,3209.0,3208.9,0.31173]
[1736869558321,6.6570753,3209.2,3208.9,0.31173]
[1736869558519,3.4492753,3209.3,3208.7,6.48419018]
[1736869558725,3.2078,3209.6,3208.8,0.4908]
[1736869558921,3.2078,3209.6,3209.0,3.27639018]
[1736869559225,3.29625557,3209.5,3209.0,3.27639018]
[1736869559415,3.29625557,3209.5,3209.4,0.31169]
[1736869559917,3.29625557,3209.5,3209.2,0.4726]
[1736869560316,3.29625557,3209.5,3209.4,0.31169]
[1736869560523,0.31164,3209.9,3209.4,0.31169]
[1736869560824,3.27639018,3209.7,3209.2,0.7843]
[1736869561028,3.2078,3209.7,3209.3,0.3117]
[1736869561229,3.6953,3210.1,3209.7,0.31165]
[1736869561517,3.6953,3210.1,3209.6,0.31167]
[1736869561518,3.44758694,3209.9,3209.6,0.31167]
[1736869561719,3.44758694,3209.9,3209.5,3.2078]
[1736869561919,3.44758694,3209.9,3209.2,0.4726]
[1736869561920,0.3117,3209.3,3209.2,0.4726]
[1736869562119,0.3117,3209.3,3209.1,3.2078]
[1736869562320,3.39788233,3209.8,3209.1,44.0078]
[1736869562825,0.31166,3209.7,3209.3,0.31169]
[1736869563222,3.32248727,3209.6,3209.5,0.31168]
[1736869563420,3.6953,3210.1,3209.2,0.4761]
[1736869563729,3.48868016,3210.0,3209.5,3.2078]
[1736869564021,0.31165,3209.8,3209.5,3.2078]
[1736869564222,0.3117,3209.3,3209.2,0.4761]
[1736869564430,3.2078,3209.6,3208.6,3.2078]
[1736869564431,3.98698,3209.6,3208.6,3.2078]
[1736869564726,0.31173,3209.0,3208.6,0.31176]
[1736869565127,0.31174,3208.9,3208.5,0.31178]
[1736869565326,0.31172,3209.1,3208.7,0.31175]
[1736869565528,0.31172,3209.1,3208.4,0.4609]
[1736869565529,3.45877936,3209.1,3208.4,0.4609]
[1736869565826,3.2078,3208.8,3208.2,3.2078]
[1736869566224,3.55151662,3208.7,3208.2,3.2078]
[1736869566524,3.2078,3208.8,3208.6,0.31177]
[1736869566723,0.4717,3209.2,3208.6,3.2078]
[1736869566924,0.31175,3208.8,3208.6,3.2078]
[1736869567114,3.48721673,3209.1,3208.6,3.2078]
[1736869567320,0.31174,3208.9,3208.6,3.2078]
[1736869567524,3.48721673,3209.1,3208.6,3.2078]
[1736869567829,6.69501673,3208.8,3208.3,41.2609]
[1736869568123,3.2078,3208.8,3208.3,41.2609]
[1736869568422,0.31177,3208.6,3208.3,41.2609]
[1736869568922,3.66058632,3208.5,3208.3,41.2609]
[1736869569127,0.31179,3208.4,3208.3,41.2609]
[1736869569323,3.34880632,3208.7,3208.3,41.2609]
[1736869569628,0.31179,3208.4,3208.3,41.2609]
[1736869569832,0.31181,3208.1,3208.0,3.2078]
[1736869570219,3.89033205,3208.1,3208.0,3.2078]
[1736869570423,3.89033205,3208.1,3208.0,44.0078]
[1736869570622,0.7985,3208.3,3208.0,44.0078]
[1736869570930,0.31179,3208.4,3208.1,0.31181]
[1736869571122,0.31179,3208.4,3208.1,0.81201]
[1736869571324,0.31179,3208.4,3208.1,0.5002]
[1736869571628,0.31179,3208.4,3208.1,0.81201]
[1736869572030,3.30733392,3208.7,3208.1,0.5002]
[1736869572231,0.3118,3208.3,3208.1,0.5002]
[1736869572430,0.3118,3208.2,3208.0,44.0078]
[1736869572727,0.31181,3208.1,3208.0,44.0078]
[1736869572925,0.31179,3208.4,3208.0,44.31962]
[1736869573120,0.3118,3208.3,3208.0,44.31962]
[1736869573324,0.3118,3208.3,3208.0,44.0078]
[1736869573525,3.59026906,3208.4,3208.0,44.0078]
[1736869573733,3.59026906,3208.4,3208.3,0.31179]
[1736869573930,0.31176,3208.7,3208.0,47.28419018]
[1736869574122,0.31176,3208.7,3208.4,0.31178]
[1736869574327,0.31178,3208.5,3208.2,0.3118]
[1736869574524,3.2078,3208.8,3208.0,44.0078]
[1736869574525,0.31181,3208.2,3208.0,44.0078]
[1736869574928,0.31177,3208.6,3208.3,0.31179]
[1736869575128,0.31176,3208.7,3208.1,0.31181]
[1736869575427,0.31181,3208.1,3208.0,44.0078]
[1736869575627,3.26478623,3208.7,3208.0,44.0078]
[1736869575628,0.31181,3208.2,3208.0,44.0078]
[1736869575829,0.31181,3208.1,3208.0,44.0078]
[1736869576028,0.31181,3208.1,3208.0,40.8]
[1736869576232,3.61801189,3208.1,3207.5,3.2078]
[1736869576433,0.31183,3208.0,3207.7,0.31185]
[1736869576732,3.25451656,3208.2,3207.8,41.11184]
[1736869576932,0.31181,3208.2,3207.8,41.11184]
[1736869577430,3.2078,3208.3,3208.2,0.3118]
[1736869577637,3.51956,3208.7,3208.1,0.31181]
[1736869577833,0.31177,3208.6,3208.3,0.31179]
[1736869578033,3.51956,3208.7,3208.3,0.31179]
[1736869578334,3.51956,3208.7,3208.4,0.31178]
[1736869578523,0.31176,3208.7,3208.3,0.31179]
[1736869578726,3.85532422,3208.6,3208.3,0.31179]
[1736869578928,3.54355422,3208.6,3208.3,0.31179]
[1736869579130,0.31175,3208.8,3208.5,0.31177]
[1736869579329,0.31175,3208.8,3208.3,3.2078]
[1736869579525,3.697,3209.1,3208.3,3.2078]
[1736869579722,3.27639018,3209.0,3208.3,3.2078]
[1736869579923,0.31182,3208.0,3207.9,3.2078]
[1736869580129,0.77945,3208.5,3207.9,3.2078]
[1736869580327,0.77945,3208.5,3207.8,40.8]
[1736869580328,0.31179,3208.3,3208.0,0.31182]
[1736869580528,3.74914569,3208.4,3207.8,40.8]
[1736869580733,4.06093569,3208.4,3208.1,0.31181]
[1736869580925,3.98719,3208.8,3207.9,3.2078]
[1736869580926,3.2078,3208.8,3207.9,3.2078]
[1736869581328,3.26402459,3208.7,3207.9,3.2078]
[1736869581536,0.3118,3208.3,3208.0,0.31182]
[1736869581736,0.3118,3208.3,3208.1,0.31181]
[1736869582533,0.3118,3208.3,3208.0,0.31182]
[1736869582733,0.31181,3208.2,3208.0,0.31182]
[1736869582935,0.77942,3208.6,3208.0,0.31182]
[1736869583132,0.31182,3208.1,3207.9,3.2078]
[1736869583330,3.2078,3208.4,3207.9,3.2078]
[1736869583634,0.3118,3208.3,3208.1,0.31181]
[1736869583833,3.2078,3208.4,3207.7,3.27639018]
[1736869584025,0.3118,3208.3,3208.1,41.11181]
[1736869584336,3.2078,3208.4,3207.7,3.27639018]
[1736869584634,0.31182,3208.1,3207.9,0.31183]
[1736869584826,0.31183,3207.9,3207.8,40.8]
[1736869585028,3.53591734,3208.0,3207.5,3.698]
[1736869585335,0.31185,3207.8,3207.5,4.00987]
[1736869585535,0.31183,3208.0,3207.6,40.8]
[1736869585735,0.31182,3208.1,3207.8,0.31184]
[1736869585933,3.98716,3208.9,3207.7,3.27639018]
[1736869586133,3.2078,3208.9,3208.3,3.27639018]
[1736869586339,0.31178,3208.5,3208.4,0.4864]
[1736869586535,3.2423009,3208.8,3208.1,0.31181]
[1736869586732,3.2078,3208.5,3208.0,0.4864]
[1736869587042,0.31178,3208.5,3208.2,0.3118]
[1736869587430,0.3118,3208.2,3208.0,0.79822]
[1736869587635,1.24641,3208.7,3208.0,0.4864]
[1736869587636,3.2078,3208.5,3208.0,0.4864]
[1736869587832,0.31185,3207.8,3207.5,0.31187]
[1736869588042,3.43799694,3208.1,3207.4,3.6649]
[1736869588238,0.31181,3208.2,3207.9,0.31183]
[1736869588440,0.3118,3208.2,3207.9,0.31183]
[1736869588634,3.43799694,3208.1,3207.4,7.19160953]
[1736869588837,0.31184,3207.9,3207.6,41.11186]
[1736869589037,0.31183,3208.0,3207.7,0.31185]
[1736869589238,3.98726,3208.5,3207.6,40.8]
[1736869589443,0.31181,3208.2,3207.9,0.31183]
[1736869589738,3.67634031,3208.1,3207.8,0.31184]
[1736869589933,0.31183,3208.0,3207.7,0.31185]
[1736869590133,0.31179,3208.3,3208.0,0.31182]
[1736869590343,0.31181,3208.2,3207.9,0.31183]
[1736869590638,3.37361958,3208.4,3207.9,0.31183]
[1736869590839,6.65000976,3208.4,3207.6,40.8]
[1736869591042,0.31185,3207.8,3207.5,0.31187]
[1736869591930,4.46445,3208.1,3207.4,3.97678]
[1736869592132,0.31185,3207.8,3207.5,0.31187]
[1736869592539,0.31185,3207.8,3207.4,3.6649]
[1736869592540,3.61197432,3208.0,3207.4,3.2078]
[1736869592736,3.61197432,3207.7,3207.5,0.31187]
[1736869592936,0.31185,3207.8,3207.5,0.31187]
[1736869593242,3.7628036,3207.7,3207.4,3.51968]
[1736869593437,3.7628036,3207.7,3207.4,3.2078]
[1736869593438,3.4509436,3207.7,3207.4,3.2078]
[1736869593640,3.4509436,3207.9,3207.4,3.2078]
[1736869593837,0.31186,3207.7,3207.4,3.51968]
[1736869594041,3.2078,3207.7,3207.2,0.4969]
[1736869594243,0.31192,3207.0,3206.9,3.2078]
[1736869594445,0.31197,3206.5,3206.4,3.2078]
[1736869595044,3.2078,3206.9,3206.4,3.2078]
[1736869595450,0.31194,3206.8,3206.4,3.2078]
[1736869595743,0.31198,3206.5,3206.2,0.9623]
[1736869595942,0.31199,3206.3,3206.2,0.9623]
[1736869596148,3.60575741,3206.8,3206.2,0.9623]
[1736869596352,3.98765,3206.9,3206.2,0.9623]
[1736869596653,0.31198,3206.5,3206.2,0.9623]
[1736869597042,0.31199,3206.4,3206.2,0.9623]
[1736869597247,0.31195,3206.7,3206.2,0.9623]
[1736869597457,3.60575741,3206.8,3206.2,0.9623]
[1736869597652,3.60217178,3206.6,3206.2,0.9623]
[1736869597953,0.31198,3206.4,3206.2,0.9623]
[1736869598351,0.31198,3206.5,3206.2,0.9623]
[1736869598555,0.31199,3206.3,3206.2,0.4756]
[1736869598756,0.312,3206.2,3206.1,40.8]
[1736869598953,0.31199,3206.3,3206.1,40.8]
[1736869599457,0.312,3206.2,3206.1,40.8]
[1736869600857,0.31203,3205.9,3205.6,0.4564]
[1736869601254,3.65320995,3205.8,3205.6,0.4564]
[1736869601557,0.31203,3205.9,3205.6,0.4564]
[1736869602058,3.27553564,3205.7,3205.6,0.4564]
[1736869602257,3.58757564,3205.8,3205.6,0.4564]
[1736869602462,0.31204,3205.8,3205.6,0.4564]
[1736869602759,3.27553564,3205.7,3205.5,3.6869]
[1736869603152,0.31205,3205.7,3205.5,3.6869]
[1736869603451,3.2078,3205.9,3205.4,40.8]
[1736869603755,3.2078,3205.5,3204.7,3.2078]
[1736869603957,3.2078,3205.1,3204.6,0.4766]
[1736869604351,0.31213,3204.9,3204.6,0.4766]
[1736869604555,0.31215,3204.7,3204.6,0.4766]
[1736869604857,0.31215,3204.7,3204.6,40.8]
[1736869606057,3.2078,3205.1,3204.6,40.8]
[1736869606254,0.31212,3205.0,3204.6,40.8]
[1736869606458,3.37905518,3205.0,3204.6,40.8]
[1736869606961,0.31213,3204.9,3204.6,40.8]
[1736869607153,3.37905518,3205.0,3204.7,0.31214]
[1736869607357,3.37905518,3205.0,3204.9,0.31213]
[1736869607964,3.37905518,3205.0,3204.8,0.78943]
[1736869608161,3.37905518,3205.0,3204.8,0.4773]
[1736869608162,3.69117518,3205.0,3204.8,0.4773]
[1736869608362,0.31213,3204.9,3204.7,3.6642]
[1736869608660,0.31213,3204.9,3204.7,0.4564]
[1736869608957,0.9368,3205.4,3204.7,3.6642]
[1736869609162,0.9368,3205.4,3205.0,0.31211]
[1736869609163,1.24888,3205.4,3205.0,0.31211]
[1736869610157,0.31209,3205.3,3205.1,40.8]
[1736869610357,0.3121,3205.2,3205.1,40.8]
[1736869610568,0.31209,3205.3,3205.1,40.8]
[1736869610763,1.24888,3205.4,3205.1,40.8]
[1736869611265,1.24888,3205.4,3205.1,41.1121]
[1736869611458,0.9368,3205.4,3205.1,40.8]
[1736869611661,0.31204,3205.8,3205.2,3.2078]
[1736869611867,0.31202,3206.1,3205.4,3.27639018]
[1736869612064,0.312,3206.2,3205.7,0.31204]
[1736869612267,6.69671499,3206.3,3205.3,0.4876]
[1736869612455,3.2078,3206.3,3205.4,0.31207]
[1736869612660,0.78003,3206.1,3205.4,0.31207]
[1736869612857,0.31205,3205.7,3205.4,0.31207]
[1736869613161,4.56078165,3206.0,3205.3,0.4876]
[1736869613354,3.57638165,3205.6,3205.5,0.31207]
[1736869613554,0.31205,3205.8,3205.3,0.4876]
[1736869613757,3.57638165,3205.8,3205.6,0.31205]
[1736869613957,0.4546,3205.9,3205.5,0.31206]
[1736869614166,0.4546,3205.9,3205.3,0.4876]
[1736869614361,3.35434345,3205.8,3205.3,0.4876]
[1736869614767,0.31205,3205.7,3205.4,0.31207]
[1736869615169,3.5017845,3205.6,3205.4,0.31207]
[1736869615464,0.31205,3205.7,3205.4,0.31208]
[1736869615663,3.8138345,3205.7,3205.3,0.79968]
[1736869615867,3.5017845,3205.8,3205.1,40.8]
[1736869616171,0.3121,3205.3,3205.0,0.31211]
[1736869616362,0.31208,3205.4,3205.0,0.31211]
[1736869616567,0.31208,3205.4,3205.0,41.11211]
[1736869616767,0.31207,3205.5,3205.1,0.3121]
[1736869616971,4.44249,3205.9,3205.1,0.3121]
[1736869616972,3.6624,3205.9,3205.2,6.48419018]
[1736869617369,3.6624,3205.9,3205.6,0.31205]
[1736869617564,3.6624,3205.9,3205.3,0.4715]
[1736869617769,3.39311201,3205.8,3205.4,0.31207]
[1736869617970,0.31207,3205.5,3205.3,0.78358]
[1736869618166,3.39311201,3205.8,3205.3,0.4715]
[1736869618369,3.39311201,3205.8,3205.7,0.31205]
[1736869618867,0.4692,3206.2,3205.5,3.27639018]
[1736869619070,0.78121,3206.2,3206.0,0.31201]
[1736869619373,3.50171793,3205.9,3205.8,0.31204]
[1736869619669,0.31201,3206.1,3205.9,0.31203]
[1736869619865,0.7812,3206.2,3206.0,0.31201]
[1736869620171,0.31201,3206.1,3205.9,0.31202]
[1736869620376,0.7812,3206.2,3206.0,0.31201]
[1736869620568,0.31201,3206.1,3205.9,0.31202]
[1736869620873,0.31203,3205.9,3205.4,0.31207]
[1736869621073,3.2078,3205.9,3205.5,0.31207]
[1736869621275,3.77336576,3205.8,3205.6,0.31205]
[1736869621474,0.31202,3206.0,3205.3,1.25171]
[1736869621769,3.46132576,3205.9,3205.3,0.4715]
[1736869621976,0.31204,3205.8,3205.7,0.31204]
[1736869622166,0.4692,3206.2,3205.6,3.98794]
[1736869622473,0.4692,3206.2,3206.1,0.31201]
[1736869622672,0.4692,3206.2,3205.8,3.27639018]
[1736869622969,0.31204,3205.8,3205.7,0.31204]
[1736869623174,4.0411524,3206.2,3205.6,3.2078]
[1736869623773,0.31204,3205.8,3205.6,3.51985]
[1736869624076,0.31204,3205.9,3205.7,0.31204]
[1736869624279,0.31204,3205.9,3205.6,0.31205]
[1736869624773,0.31204,3205.8,3205.4,0.4628]
[1736869624966,0.31203,3206.0,3205.7,0.31205]
[1736869625172,0.31203,3205.9,3205.6,0.31205]
[1736869625367,3.92440946,3205.9,3205.6,0.31205]
[1736869625671,0.31204,3205.8,3205.5,0.31206]
[1736869626063,3.61237946,3205.9,3205.4,0.4628]
[1736869626264,3.61237946,3205.9,3205.8,0.31204]
[1736869626470,3.989,3206.2,3205.9,0.31202]
[1736869626671,0.31202,3206.1,3205.8,0.31203]
[1736869626865,3.677,3206.2,3205.5,4.05657018]
[1736869627070,3.6705,3206.6,3205.6,3.2078]
[1736869627275,3.6705,3206.6,3205.7,0.78013]
[1736869627469,0.312,3206.3,3205.7,0.78013]
[1736869627768,0.31202,3206.0,3205.7,0.31204]
[1736869627977,4.45041,3206.6,3205.6,3.2078]
[1736869627978,3.58144589,3206.2,3205.6,3.2078]
[1736869628175,0.21175544,3205.9,3205.6,3.2078]
[1736869628377,6.53913822,3206.5,3205.6,3.2078]
[1736869628378,0.492,3206.1,3205.6,3.2078]
[1736869628567,3.6705,3206.6,3206.0,3.2078]
[1736869628769,3.26274804,3206.0,3205.5,3.2078]
[1736869628969,3.26274804,3206.0,3205.5,3.7002]
[1736869629178,0.31203,3205.9,3205.6,0.31205]
[1736869629475,3.2078,3206.2,3205.5,3.7002]
[1736869629870,3.58528384,3206.1,3205.6,2.71515294]
[1736869630066,0.492,3206.5,3205.9,5.92295294]
[1736869630271,3.98761,3207.1,3205.9,5.92295294]
[1736869630272,3.36549873,3206.4,3206.3,3.51979]
[1736869630481,0.31194,3206.9,3206.3,3.7002]
[1736869630775,0.31194,3206.9,3206.6,0.31195]
[1736869630968,0.31189,3207.4,3207.0,0.31191]
[1736869631170,0.9597,3207.5,3206.8,2.71515294]
[1736869631365,3.34994822,3207.2,3206.9,0.4948]
[1736869631575,0.31191,3207.2,3206.9,0.4948]
[1736869631772,0.9597,3207.5,3206.9,0.4948]
[1736869631980,0.9597,3207.5,3207.1,3.2078]
[1736869632182,3.37101055,3207.4,3207.1,3.2078]
[1736869632380,3.2078,3208.2,3207.2,3.49491294]
[1736869632679,3.84951055,3208.4,3207.9,5.92295294]